bitfinex/quotes_BTCUSD_20250902
["timestamp","ask_amount","ask_price","bid_price","bid_amount"]
[1756801192076,0.3532008,110310.0,110300.0,0.34079366]
[1756801193062,0.3551808,110310.0,110300.0,0.18663366]
[1756801193256,0.3551808,110310.0,110300.0,0.34075366]
[1756801194937,0.71117791,110310.0,110300.0,0.34075366]
[1756801195114,0.53648802,110310.0,110300.0,0.34071366]
[1756801195322,0.89248513,110310.0,110300.0,0.34071366]
[1756801195727,0.71117791,110310.0,110300.0,0.34071366]
[1756801196397,0.3551808,110310.0,110300.0,0.34071366]
[1756801196615,0.3532008,110310.0,110300.0,0.34071366]
[1756801196852,0.00112841,110310.0,110300.0,0.43262965]
[1756801197062,0.00112841,110310.0,110300.0,0.27854965]
[1756801197273,0.00012841,110310.0,110300.0,0.43262965]
[1756801197473,0.00112841,110310.0,110300.0,0.43262965]
[1756801197732,0.00012841,110310.0,110300.0,0.43262965]
[1756801199096,0.00012841,110310.0,110300.0,0.78862676]
[1756801199592,0.05012841,110310.0,110300.0,0.78819393]
[1756801199798,0.05012841,110310.0,110300.0,0.70383393]
[1756801199996,0.05012841,110310.0,110300.0,0.50230965]
[1756801200415,0.05012841,110310.0,110300.0,0.85787393]
[1756801203046,0.05012841,110310.0,110300.0,0.85783393]
[1756801203351,0.05012841,110310.0,110300.0,0.70383393]
[1756801203525,0.05012841,110310.0,110300.0,0.85783393]
[1756801203749,0.05012841,110310.0,110300.0,0.50226965]
[1756801203750,0.40569269,110310.0,110300.0,0.50226965]
[1756801205174,0.05012841,110310.0,110300.0,0.50226965]
[1756801205416,0.40569269,110310.0,110300.0,0.50226965]
[1756801205543,0.05012841,110310.0,110300.0,0.50226965]
[1756801205760,0.40569269,110310.0,110300.0,0.50226965]
[1756801205980,0.05012841,110310.0,110300.0,0.50226965]
[1756801206410,0.40569269,110310.0,110300.0,0.50226965]
[1756801206911,0.17645543,110310.0,110300.0,0.50226965]
[1756801207913,0.36748569,110320.0,110310.0,0.18130722]
[1756801208056,0.71310856,110320.0,110310.0,0.27529321]
[1756801208265,0.00198,110320.0,110310.0,0.27853321]
[1756801208530,0.35556428,110320.0,110310.0,0.27853321]
[1756801209068,0.01224542,110330.0,110320.0,0.18129079]
[1756801209277,0.69085218,110340.0,110330.0,0.18127435]
[1756801209634,0.89443646,110340.0,110330.0,0.18127435]
[1756801209841,0.36944339,110340.0,110330.0,0.18654435]
[1756801210042,0.36746339,110340.0,110330.0,0.18654435]
[1756801210878,0.36846339,110340.0,110330.0,0.18654435]
[1756801211321,0.01289911,110340.0,110330.0,0.18654435]
[1756801211503,0.36846339,110340.0,110330.0,0.18654435]
[1756801212124,0.36746339,110340.0,110330.0,0.18654435]
[1756801212447,0.36746339,110340.0,110330.0,0.18854435]
[1756801212672,0.53039523,110360.0,110340.0,0.18125793]
[1756801212898,0.34,110360.0,110350.0,0.3351615]
[1756801213113,0.34,110360.0,110350.0,0.3404315]
[1756801213114,0.34245216,110360.0,110350.0,0.3404315]
[1756801213344,0.35603644,110360.0,110350.0,0.3404315]
[1756801213774,0.00047216,110360.0,110350.0,0.3404315]
[1756801213983,0.00047216,110360.0,110350.0,0.43234749]
[1756801214198,0.35703644,110360.0,110350.0,0.43234749]
[1756801214411,0.0138308,110360.0,110350.0,0.43234749]
[1756801214620,0.36939508,110360.0,110350.0,0.43234749]
[1756801214835,0.0138308,110360.0,110350.0,0.43234749]
[1756801215301,0.00147216,110360.0,110350.0,0.43234749]
[1756801215937,0.00147216,110360.0,110350.0,0.43434749]
[1756801216363,0.00047216,110360.0,110350.0,0.43434749]
[1756801216778,0.00047216,110360.0,110350.0,0.43734749]
[1756801217061,0.00047216,110360.0,110350.0,0.79291177]
[1756801217288,0.00047216,110360.0,110350.0,1.21385059]
[1756801217741,0.00047216,110360.0,110350.0,1.24311059]
[1756801218173,0.00047216,110360.0,110350.0,1.08919059]
[1756801218395,0.00047216,110360.0,110350.0,1.24307059]
[1756801219040,0.00047216,110360.0,110350.0,1.59863487]
[1756801219696,0.00047216,110360.0,110350.0,1.24307059]
[1756801219920,0.00047216,110360.0,110350.0,1.59863487]
[1756801221054,0.00047216,110360.0,110350.0,1.93863487]
[1756801221264,0.00047216,110360.0,110350.0,1.98863487]
[1756801221480,0.00047216,110360.0,110350.0,2.03863487]
[1756801222354,0.00047216,110360.0,110350.0,1.98863487]
[1756801222556,0.00047216,110360.0,110350.0,2.03863487]
[1756801222786,0.00047216,110360.0,110350.0,2.30193487]
[1756801222977,0.00047216,110360.0,110350.0,2.25193487]
[1756801223219,0.00047216,110360.0,110350.0,2.30193487]
[1756801223875,0.00047216,110360.0,110350.0,2.30189487]
[1756801224267,0.00047216,110360.0,110350.0,2.25189487]
[1756801224472,0.00047216,110360.0,110350.0,2.30189487]
[1756801224973,0.0002,110380.0,110370.0,0.55771176]
[1756801225187,0.00032836,110380.0,110370.0,0.87310775]
[1756801225401,0.00032836,110380.0,110370.0,0.87837775]
[1756801225609,0.00032836,110380.0,110370.0,1.27837775]
[1756801226916,0.00032836,110380.0,110370.0,0.96383835]
[1756801227107,0.00032836,110380.0,110370.0,1.31940263]
[1756801227340,0.00288,110410.0,110400.0,0.18115942]
[1756801227555,0.36042428,110410.0,110400.0,0.33495942]
[1756801229734,0.54156729,110410.0,110400.0,0.33691942]
[1756801229944,0.36042428,110410.0,110400.0,0.33691942]
[1756801230364,0.36042428,110410.0,110400.0,0.33791942]
[1756801231235,0.00486,110410.0,110400.0,0.33791942]
[1756801231442,0.36042428,110410.0,110400.0,0.33791942]
[1756801232088,0.35774428,110410.0,110400.0,0.33791942]
[1756801232296,0.35774428,110410.0,110400.0,0.42983541]
[1756801233586,0.00218,110410.0,110400.0,0.42983541]
[1756801233822,0.35774428,110410.0,110400.0,0.42983541]
[1756801234245,0.35774428,110410.0,110400.0,0.50478541]
[1756801234895,0.35774428,110410.0,110400.0,0.49951541]
[1756801235124,0.00218,110410.0,110400.0,0.49951541]
[1756801235333,0.35774428,110410.0,110400.0,0.49951541]
[1756801236051,0.35774428,110410.0,110400.0,0.50478541]
[1756801236262,0.00218,110410.0,110400.0,0.50478541]
[1756801236490,0.0002,110410.0,110400.0,0.50478541]
[1756801237542,0.0002,110410.0,110400.0,0.35102541]
[1756801237849,0.0002,110410.0,110400.0,0.50474541]
[1756801240929,0.35773428,110410.0,110400.0,0.35102541]
[1756801241130,0.35773428,110410.0,110400.0,0.49947541]
[1756801241342,0.35773428,110410.0,110400.0,0.5410398]
[1756801241557,0.35773428,110410.0,110400.0,0.5463798]
[1756801241769,0.35773428,110410.0,110400.0,0.5463398]
[1756801242392,0.35773428,110410.0,110400.0,0.3926598]
[1756801242598,0.00217,110410.0,110400.0,0.5463398]
[1756801242803,0.35773428,110410.0,110400.0,0.5463398]
[1756801243019,0.00217,110410.0,110400.0,0.5463398]
[1756801243581,0.35773428,110410.0,110400.0,0.5463398]
[1756801244144,0.35773428,110410.0,110400.0,0.5409998]
[1756801244675,0.35773428,110410.0,110400.0,0.5463398]
[1756801244896,0.36041428,110410.0,110400.0,0.20616038]
[1756801245113,0.89712157,110410.0,110400.0,0.31827599]
[1756801245335,0.89712157,110410.0,110400.0,0.15668]
[1756801245559,1.26513144,110410.0,110400.0,0.15668]
[1756801245767,1.25665244,110410.0,110400.0,0.15668]
[1756801245982,1.26513135,110410.0,110400.0,0.15668]
[1756801246451,1.26513135,110410.0,110400.0,0.15468]
[1756801246867,0.52115942,110400.0,110390.0,0.15368]
[1756801247084,1.25181885,110400.0,110390.0,0.15368]
[1756801247283,1.25646885,110400.0,110390.0,0.15368]
[1756801247972,0.18117583,110390.0,110380.0,0.06964]
[1756801248187,0.53871011,110390.0,110380.0,0.49642823]
[1756801248620,0.18314583,110390.0,110380.0,0.49642823]
[1756801248832,0.53871011,110390.0,110380.0,0.49642823]
[1756801249063,0.53871011,110390.0,110380.0,0.31523599]
[1756801249280,0.54139011,110390.0,110380.0,0.31523599]
[1756801249924,0.54139011,110390.0,110380.0,0.49942823]
[1756801250135,0.53871011,110390.0,110380.0,0.49742823]
[1756801250367,0.53871011,110390.0,110380.0,0.49642823]
[1756801250995,0.53871011,110390.0,110380.0,0.50176823]
[1756801251421,0.53871011,110390.0,110380.0,0.31523599]
[1756801252593,0.53871011,110390.0,110380.0,0.49642823]
[1756801253000,0.53871011,110390.0,110380.0,0.49742823]
[1756801253415,0.53871011,110390.0,110380.0,0.49942823]
[1756801253775,0.53871011,110390.0,110380.0,0.31823599]
[1756801254092,0.53871011,110390.0,110380.0,0.49942823]
[1756801254511,0.18314583,110390.0,110380.0,0.49942823]
[1756801254768,0.53871011,110390.0,110380.0,0.49942823]
[1756801256464,0.53871011,110390.0,110380.0,0.50263823]
[1756801256760,0.53871011,110390.0,110380.0,0.50476823]
[1756801257103,0.18117583,110390.0,110380.0,0.50476823]
[1756801257568,0.35556428,110390.0,110380.0,0.50476823]
[1756801257787,0.53674011,110390.0,110380.0,0.50476823]
[1756801258040,0.35556428,110390.0,110380.0,0.50476823]
[1756801258962,0.18134301,110410.0,110400.0,0.18115942]
[1756801259225,0.55645383,110410.0,110400.0,0.34244391]
[1756801259453,0.37531082,110410.0,110400.0,0.34017942]
[1756801259676,0.0002,110410.0,110400.0,0.34017942]
[1756801260139,0.0002,110410.0,110400.0,0.43209541]
[1756801260600,0.0012,110410.0,110400.0,0.43209541]
[1756801260828,0.0012,110410.0,110400.0,0.78709384]
[1756801261739,0.0012,110410.0,110400.0,0.43209541]
[1756801261965,0.0002,110410.0,110400.0,0.43209541]
[1756801264024,0.0002,110410.0,110400.0,0.47335388]
[1756801265257,0.0002,110410.0,110400.0,0.82835231]
[1756801266273,0.0002,110410.0,110400.0,1.54428956]
[1756801266526,0.0002,110410.0,110400.0,2.19151956]
[1756801267005,0.0002,110410.0,110400.0,1.79151956]
[1756801267434,0.0002,110410.0,110400.0,2.19251956]
[1756801268160,0.0002,110410.0,110400.0,2.24251956]
[1756801268401,0.0002,110410.0,110400.0,2.24451956]
[1756801268626,0.0002,110410.0,110400.0,2.24251956]
[1756801269049,0.0002,110410.0,110400.0,2.19151956]
[1756801269254,0.0002,110410.0,110400.0,2.24551956]
[1756801269468,0.0002,110410.0,110400.0,2.24851956]
[1756801273436,0.0002,110410.0,110400.0,2.51181956]
[1756801274628,0.0002,110410.0,110400.0,2.56181956]
[1756801274831,0.0002,110420.0,110410.0,0.54208183]
[1756801275029,0.00034145,110420.0,110410.0,1.29547625]
[1756801275248,0.00034145,110420.0,110410.0,1.34751625]
[1756801275468,0.00034145,110420.0,110410.0,1.74751625]
[1756801276114,0.00034145,110420.0,110410.0,1.74951625]
[1756801276334,0.00034145,110420.0,110410.0,1.75251625]
[1756801277183,0.00034145,110420.0,110410.0,1.59891625]
[1756801277814,0.00034145,110420.0,110410.0,1.75251625]
[1756801279130,0.00034145,110420.0,110410.0,1.59891625]
[1756801279346,0.00034145,110420.0,110410.0,1.24391782]
[1756801279581,0.00034145,110420.0,110410.0,1.75251625]
[1756801280891,0.00034145,110420.0,110410.0,1.73198625]
[1756801281108,0.00230145,110420.0,110410.0,1.88558625]
[1756801281321,0.00034145,110420.0,110410.0,1.93558625]
[1756801281743,0.00034145,110420.0,110410.0,1.88558625]
[1756801282807,0.00034145,110420.0,110410.0,1.93558625]
[1756801283654,0.00034145,110420.0,110410.0,1.61081782]
[1756801283838,0.00034145,110420.0,110410.0,1.96581625]
[1756801284071,0.00034145,110420.0,110410.0,2.10751468]
[1756801284280,1e-08,110420.0,110410.0,2.10751468]
[1756801284690,1e-08,110420.0,110410.0,2.37081468]
[1756801285130,1e-08,110420.0,110410.0,2.36781468]
[1756801285552,1e-08,110420.0,110410.0,2.37481468]
[1756801285828,1e-08,110420.0,110410.0,2.37281468]
[1756801286042,1e-08,110420.0,110410.0,2.37781468]
[1756801287011,1e-08,110420.0,110410.0,2.37777468]
[1756801287800,1e-08,110420.0,110410.0,2.22421468]
[1756801287941,1e-08,110420.0,110410.0,2.37777468]
[1756801290573,1e-08,110420.0,110410.0,2.39593468]
[1756801291197,1e-08,110420.0,110410.0,2.83313468]
[1756801293788,1e-08,110420.0,110410.0,1.93934782]
[1756801293999,1e-08,110420.0,110410.0,2.44786625]
[1756801295197,1e-08,110420.0,110410.0,2.80286468]
[1756801297180,0.0676559,110460.0,110450.0,0.18107741]
[1756801297393,0.06779733,110460.0,110450.0,0.4961534]
[1756801297770,0.06779733,110460.0,110450.0,0.3426334]
[1756801298003,0.00014143,110460.0,110450.0,0.4961534]
[1756801299293,0.18120244,110460.0,110450.0,0.22316]
[1756801299501,0.53620087,110460.0,110450.0,0.22316]
[1756801299727,0.18120244,110460.0,110450.0,0.22316]
[1756801299913,0.18120244,110460.0,110450.0,0.22416]
[1756801301378,0.18120244,110460.0,110450.0,0.40523741]
[1756801301550,0.18120244,110460.0,110450.0,0.22416]
[1756801301762,0.18320244,110460.0,110450.0,0.22416]
[1756801302105,0.18120244,110460.0,110450.0,0.40523741]
[1756801302329,0.18120244,110460.0,110450.0,0.22416]
[1756801303773,0.18120244,110460.0,110450.0,0.07064]
[1756801303997,0.53620087,110460.0,110450.0,0.07064]
[1756801304228,0.87620087,110460.0,110450.0,0.15448]
[1756801304952,0.87620087,110460.0,110450.0,0.33555741]
[1756801304953,0.00014143,110460.0,110450.0,0.33555741]
[1756801305417,0.00014143,110460.0,110450.0,0.78247183]
[1756801306322,0.00014143,110460.0,110450.0,0.78569183]
[1756801306995,0.00014143,110460.0,110450.0,0.4274734]
[1756801307203,0.00014143,110460.0,110450.0,0.4306934]
[1756801307418,0.00014143,110460.0,110450.0,0.4274734]
[1756801310706,0.00014143,110460.0,110450.0,0.78777183]
[1756801311043,0.00014143,110460.0,110450.0,0.78569183]
[1756801311252,0.00014143,110460.0,110450.0,0.4306934]
[1756801311461,0.00014143,110460.0,110450.0,0.4327734]
[1756801312542,0.00014143,110460.0,110450.0,0.4306934]
[1756801314511,0.00014143,110460.0,110450.0,0.2772134]
[1756801314722,0.00014143,110460.0,110450.0,0.4306934]
[1756801315773,0.18120244,110460.0,110450.0,0.2739934]
[1756801315987,0.53620087,110460.0,110450.0,0.33555741]
[1756801316263,0.53620087,110460.0,110450.0,0.15448]
[1756801316926,0.18107741,110450.0,110430.0,0.7438944]
[1756801317157,0.53607584,110450.0,110440.0,0.24539599]
[1756801317607,0.1810938,110440.0,110430.0,0.51401889]
[1756801317817,0.1810938,110440.0,110430.0,0.75944619]
[1756801318256,0.53609223,110440.0,110430.0,0.31503599]
[1756801318487,0.53609223,110440.0,110430.0,0.16155599]
[1756801318709,0.53609223,110440.0,110430.0,0.31503599]
[1756801318921,0.1810938,110440.0,110430.0,0.49714619]
[1756801319144,0.1810938,110440.0,110430.0,0.31603599]
[1756801319576,0.53594773,110440.0,110430.0,0.31603599]
[1756801319803,0.53594773,110440.0,110430.0,0.31503599]
[1756801320057,0.89080166,110440.0,110430.0,0.22512]
[1756801320513,0.89080166,110440.0,110430.0,0.15548]
[1756801321390,0.89080166,110440.0,110430.0,0.003]
[1756801321621,0.89080166,110440.0,110430.0,0.15648]
[1756801322506,0.89080166,110440.0,110430.0,0.15448]
[1756801323220,0.89080166,110440.0,110430.0,0.15348]
[1756801323650,0.89080166,110440.0,110430.0,0.001]
[1756801323921,0.89080166,110440.0,110430.0,0.15448]
[1756801324963,0.89080166,110440.0,110430.0,0.001]
[1756801325200,1.23080166,110440.0,110430.0,0.001]
[1756801325852,1.38428166,110440.0,110430.0,0.001]
[1756801326717,0.1811102,110430.0,110420.0,0.15348]
[1756801326935,0.53596413,110430.0,110420.0,0.15348]
[1756801327562,0.1811266,110420.0,110410.0,0.06964]
[1756801327799,0.89083446,110420.0,110410.0,0.15348]
[1756801327999,0.89083446,110420.0,110400.0,0.07676631]
[1756801328000,0.18114301,110410.0,110390.0,0.30105116]
[1756801328216,0.53599694,110410.0,110400.0,0.15348]
[1756801328445,0.53599694,110410.0,110400.0,0.1567]
[1756801328876,0.53599694,110410.0,110390.0,0.16467599]
[1756801328877,0.18115942,110400.0,110390.0,0.16467599]
[1756801329110,0.89086728,110400.0,110390.0,0.07290145]
[1756801329349,0.53601335,110400.0,110390.0,0.22638145]
[1756801329560,0.18115942,110400.0,110390.0,0.22638145]
[1756801329825,0.53601335,110400.0,110390.0,0.22326145]
[1756801330044,0.53601335,110400.0,110390.0,0.15362145]
[1756801330045,0.89086728,110400.0,110390.0,0.15362145]
[1756801330719,0.18115942,110400.0,110390.0,0.15674145]
[1756801330939,0.53601335,110400.0,110390.0,0.15674145]
[1756801331237,0.53601335,110400.0,110390.0,0.15774145]
[1756801331465,0.53601335,110400.0,110390.0,0.15674145]
[1756801332152,1.23086728,110400.0,110390.0,0.00014145]
[1756801332365,1.23086728,110400.0,110390.0,0.15462145]
[1756801332981,1.23086728,110400.0,110390.0,0.00114145]
[1756801333401,1.23086728,110400.0,110390.0,0.00014145]
[1756801334275,1.23286728,110400.0,110390.0,0.00014145]
[1756801335878,1.38638728,110400.0,110390.0,0.00014145]
[1756801336299,0.67667942,110400.0,110390.0,0.00014145]
[1756801336490,1.38638728,110400.0,110390.0,0.00014145]
[1756801340033,1.38638728,110400.0,110390.0,0.00326145]
[1756801340404,1.38638728,110400.0,110390.0,0.00014145]
[1756801340405,1.23286728,110400.0,110390.0,0.00014145]
[1756801341226,1.38638728,110400.0,110390.0,0.00014145]
[1756801341636,1.38638728,110400.0,110390.0,0.00326145]
[1756801342173,0.52315942,110400.0,110390.0,0.00326145]
[1756801342377,1.38638728,110400.0,110390.0,0.00527145]
[1756801342598,1.38638728,110400.0,110390.0,0.00326145]
[1756801343260,1.38638728,110400.0,110390.0,0.00527145]
[1756801343473,1.38638728,110400.0,110390.0,0.00014145]
[1756801344113,1.23286728,110400.0,110390.0,0.00326145]
[1756801344327,1.23286728,110400.0,110390.0,0.00527145]
[1756801344542,1.38638728,110400.0,110390.0,0.00527145]
[1756801344773,1.38638728,110400.0,110390.0,0.00326145]
[1756801345005,1.38638728,110400.0,110390.0,0.00014145]
[1756801346089,1.38638728,110400.0,110390.0,0.00326145]
[1756801346290,1.38638728,110400.0,110390.0,0.00527145]
[1756801346514,1.03153335,110400.0,110390.0,0.00527145]
[1756801348135,1.38638728,110400.0,110390.0,0.00527145]
[1756801349010,1.38638728,110400.0,110390.0,0.00326145]
[1756801349210,0.67667942,110400.0,110390.0,0.00527145]
[1756801349416,1.03153335,110400.0,110390.0,0.00527145]
[1756801350943,0.67667942,110400.0,110390.0,0.00527145]
[1756801351155,1.03153335,110400.0,110390.0,0.00527145]
[1756801352312,0.67667942,110400.0,110390.0,0.00527145]
[1756801352518,1.38638728,110400.0,110390.0,0.00527145]
[1756801356069,1.38638728,110400.0,110390.0,0.00326145]
[1756801356278,1.38638728,110400.0,110390.0,0.18443728]
[1756801356509,1.4059463,110400.0,110390.0,0.18443728]
[1756801356725,1.38638728,110400.0,110390.0,0.18443728]
[1756801357500,1.40596048,110400.0,110390.0,0.18443728]
[1756801357861,1.40596048,110400.0,110390.0,0.00014145]
[1756801358279,1.40596048,110400.0,110390.0,0.18443728]
[1756801358488,1.40596048,110400.0,110390.0,0.18644728]
[1756801359121,0.69625262,110400.0,110390.0,0.18644728]
[1756801359479,1.05110655,110400.0,110390.0,0.18644728]
[1756801359704,0.1750932,110400.0,110390.0,0.54130121]
[1756801359916,0.002,110400.0,110390.0,0.18644728]
[1756801360130,0.18315942,110400.0,110390.0,0.18644728]
[1756801360338,0.35685393,110400.0,110390.0,0.33996728]
[1756801360780,0.002,110400.0,110390.0,0.43188327]
[1756801360985,0.002,110400.0,110390.0,0.7867372]
[1756801361575,0.50837393,110410.0,110400.0,0.18115942]
[1756801361816,0.37443788,110410.0,110400.0,0.18115942]
[1756801362087,0.01958395,110410.0,110400.0,0.18615942]
[1756801362285,1.02946151,110420.0,110410.0,0.18114301]
[1756801362467,1.04903906,110420.0,110410.0,0.18614301]
[1756801363261,0.71443148,110420.0,110410.0,0.18614301]
[1756801363460,1.04903808,110420.0,110410.0,0.18614301]
[1756801363863,0.69418415,110420.0,110410.0,0.18614301]
[1756801364082,1.04903808,110420.0,110410.0,0.18614301]
[1756801364256,1.05203808,110420.0,110410.0,0.18614301]
[1756801364452,0.37543148,110420.0,110410.0,0.18614301]
[1756801364640,0.02057755,110420.0,110410.0,0.33962301]
[1756801364848,0.68944514,110430.0,110420.0,0.1811266]
[1756801365050,1.04901219,110430.0,110420.0,0.1831466]
[1756801365253,0.89553219,110430.0,110420.0,0.1861266]
[1756801365496,0.86790098,110430.0,110420.0,0.1861266]
[1756801366048,1.05001118,110430.0,110420.0,0.1861266]
[1756801366598,1.05301118,110430.0,110420.0,0.1861266]
[1756801368074,1.05301118,110430.0,110420.0,0.1841066]
[1756801368539,1.03344413,110430.0,110420.0,0.1841066]
[1756801369999,0.87996413,110430.0,110420.0,0.1841066]
[1756801370234,1.03344413,110430.0,110420.0,0.1841066]
[1756801373952,0.87996413,110430.0,110420.0,0.00298]
[1756801374166,1.03340413,110430.0,110420.0,0.00298]
[1756801374388,1.03340413,110430.0,110420.0,0.1841066]
[1756801374787,0.87996413,110430.0,110420.0,0.1841066]
[1756801375131,1.03340413,110430.0,110420.0,0.1841066]
[1756801375556,1.03340413,110430.0,110420.0,0.1861266]
[1756801375757,1.03340413,110430.0,110420.0,0.1841066]
[1756801377536,1.03340413,110430.0,110420.0,0.00298]
[1756801378746,0.18114276,110420.0,110400.0,0.33757364]
[1756801378949,0.53599694,110410.0,110400.0,0.33757364]
[1756801379142,0.53599694,110410.0,110400.0,0.005]
[1756801379370,0.33458301,110410.0,110400.0,0.00298]
[1756801379690,0.68943694,110410.0,110400.0,0.18413942]
[1756801379924,0.68943694,110410.0,110400.0,0.18615942]
[1756801380771,0.68943694,110410.0,110400.0,0.005]
[1756801381480,0.68943694,110410.0,110400.0,0.18615942]
[1756801381703,0.18114301,110410.0,110400.0,0.18715942]
[1756801381919,0.33458301,110410.0,110400.0,0.18715942]
[1756801382133,0.68964376,110410.0,110400.0,0.18715942]
[1756801383553,0.33458301,110410.0,110400.0,0.18715942]
[1756801383770,0.68964376,110410.0,110400.0,0.18715942]
[1756801385100,0.18114301,110410.0,110400.0,0.18715942]
[1756801385381,0.68960376,110410.0,110400.0,0.18715942]
[1756801385617,0.53620376,110410.0,110400.0,0.18715942]
[1756801387316,0.18114276,110420.0,110400.0,0.18715942]
[1756801387547,0.54522646,110430.0,110410.0,0.429439]
[1756801387757,0.34356571,110430.0,110410.0,0.426459]
[1756801387967,1.03862646,110430.0,110420.0,0.005]
[1756801389968,1.03862646,110430.0,110420.0,0.00298]
[1756801390200,0.1811266,110420.0,110410.0,0.429409]
[1756801390438,0.53618735,110420.0,110410.0,0.431399]
[1756801390696,0.53618735,110420.0,110410.0,0.09685599]
[1756801391518,0.53618735,110420.0,110410.0,0.277999]
[1756801391657,0.53818735,110420.0,110410.0,0.277999]
[1756801393305,0.53818735,110420.0,110410.0,0.09685599]
[1756801393505,0.53818735,110420.0,110410.0,0.09486599]
[1756801394063,0.1831266,110420.0,110410.0,0.277999]
[1756801394269,0.53818735,110420.0,110410.0,0.277999]
[1756801394691,0.53818735,110420.0,110410.0,0.09191599]
[1756801394899,0.18114301,110410.0,110400.0,0.33750942]
[1756801395111,0.53620376,110410.0,110400.0,0.43141541]
[1756801395527,0.18114301,110410.0,110400.0,0.43141541]
[1756801395737,0.53620376,110410.0,110400.0,0.43141541]
[1756801396313,0.18114301,110410.0,110400.0,0.43141541]
[1756801396521,0.53620376,110410.0,110400.0,0.43141541]
[1756801397034,0.53620376,110410.0,110400.0,0.43241541]
[1756801398274,0.53620376,110410.0,110400.0,0.25125599]
[1756801398598,0.53620376,110410.0,110400.0,0.15735]
[1756801399002,0.53620376,110410.0,110400.0,0.1544]
[1756801399204,0.53620376,110410.0,110400.0,0.15735]
[1756801400170,0.53620376,110410.0,110400.0,0.00295]
[1756801400595,0.53820376,110410.0,110400.0,0.00295]
[1756801401149,0.53820376,110410.0,110400.0,0.00494]
[1756801403377,0.18314301,110410.0,110400.0,0.00494]
[1756801403590,0.53820376,110410.0,110400.0,0.00494]
[1756801407310,0.53820376,110410.0,110400.0,0.00295]
[1756801407532,0.18115942,110400.0,110390.0,0.00014145]
[1756801408024,0.68958017,110400.0,110390.0,0.00014145]
[1756801408232,0.33451942,110400.0,110390.0,0.00309145]
[1756801408421,0.68958017,110400.0,110390.0,0.00309145]
[1756801408636,0.33451942,110400.0,110390.0,0.00508145]
[1756801408856,0.68958017,110400.0,110390.0,0.00508145]
[1756801409091,0.68958017,110400.0,110390.0,0.00309145]
[1756801409509,0.18115942,110400.0,110390.0,0.18625728]
[1756801409718,0.18115942,110400.0,110390.0,0.00508145]
[1756801409923,0.53622017,110400.0,110390.0,0.18625728]
[1756801410070,0.53622017,110400.0,110390.0,0.18825728]
[1756801410271,0.18115942,110400.0,110390.0,0.18925728]
[1756801411083,0.68956376,110410.0,110390.0,0.18925728]
[1756801411368,0.18115942,110400.0,110390.0,0.18630728]
[1756801411782,0.68956376,110410.0,110390.0,0.18630728]
[1756801411998,1.02956376,110410.0,110400.0,0.00295]
[1756801412205,1.02956376,110410.0,110400.0,0.18609942]
[1756801412416,1.02956376,110410.0,110400.0,0.00494]
[1756801413250,0.87620376,110410.0,110400.0,0.18609942]
[1756801413467,0.18114301,110410.0,110400.0,0.33945942]
[1756801414000,0.18114301,110410.0,110400.0,0.34045942]
[1756801414671,0.69860368,110420.0,110400.0,0.34045942]
[1756801414875,1.03860368,110420.0,110410.0,0.00295]
[1756801415085,0.68354293,110420.0,110410.0,0.18608301]
[1756801415292,1.03860368,110420.0,110410.0,0.18608301]
[1756801415551,0.68354293,110420.0,110410.0,0.18608301]
[1756801415755,1.03860368,110420.0,110410.0,0.00494]
[1756801416167,0.54524368,110420.0,110410.0,0.18608301]
[1756801416386,0.69860368,110420.0,110410.0,0.18608301]
[1756801416886,0.70060368,110420.0,110410.0,0.18608301]
[1756801418402,0.002,110420.0,110410.0,0.18608301]
[1756801418615,0.002,110420.0,110410.0,0.277999]
[1756801420714,0.002,110420.0,110410.0,0.63305975]
[1756801421184,0.002,110420.0,110410.0,0.307289]
[1756801422276,0.1810938,110440.0,110430.0,0.18110053]
[1756801422494,0.35506075,110440.0,110430.0,0.18322053]
[1756801422720,0.68349128,110450.0,110430.0,0.18645053]
[1756801423200,0.87613816,110450.0,110440.0,0.1843238]
[1756801423422,0.15396,110450.0,110440.0,0.1864438]
[1756801423845,0.35506075,110460.0,110450.0,0.18107741]
[1756801424056,0.33520244,110460.0,110450.0,0.18642741]
[1756801424267,0.69026319,110460.0,110450.0,0.18642741]
[1756801425002,0.69026319,110460.0,110450.0,0.00323]
[1756801425209,0.69026319,110460.0,110450.0,0.00023]
[1756801425417,0.002,110450.0,110440.0,0.42596979]
[1756801425627,0.002,110450.0,110440.0,0.42808979]
[1756801425835,0.69626319,110460.0,110440.0,0.42808979]
[1756801426035,0.35506075,110450.0,110440.0,0.42808979]
[1756801426239,0.35506075,110450.0,110440.0,0.42804979]
[1756801426483,0.35506075,110450.0,110440.0,0.42800979]
[1756801427133,0.35906075,110450.0,110440.0,0.42800979]
[1756801427338,0.35906075,110450.0,110440.0,0.43123979]
[1756801428408,0.35906075,110450.0,110440.0,0.27735979]
[1756801428612,0.35906075,110450.0,110440.0,0.43123979]
[1756801428823,0.35906075,110450.0,110440.0,0.27735979]
[1756801429038,0.35906075,110450.0,110440.0,0.43115979]
[1756801429249,0.36106075,110450.0,110440.0,0.43115979]
[1756801429862,0.54213816,110450.0,110440.0,0.43115979]
[1756801430488,0.54213816,110450.0,110440.0,0.27735979]
[1756801430696,0.54709816,110450.0,110440.0,0.24567599]
[1756801430916,0.54709816,110450.0,110440.0,0.42676979]
[1756801431088,0.54416816,110450.0,110440.0,0.42676979]
[1756801431488,0.1810938,110440.0,110430.0,0.15376]
[1756801431777,0.69284455,110440.0,110430.0,0.15376]
[1756801432025,0.69284455,110440.0,110420.0,0.1933906]
[1756801432026,0.1811102,110430.0,110420.0,0.3471506]
[1756801432234,0.53617095,110430.0,110420.0,0.43906659]
[1756801432433,0.53820095,110430.0,110410.0,0.65984016]
[1756801432634,0.35506075,110420.0,110410.0,0.35498615]
[1756801432844,0.35506075,110420.0,110410.0,0.51082615]
[1756801433500,0.53821735,110420.0,110410.0,0.28746615]
[1756801433657,0.53821735,110420.0,110410.0,0.432129]
[1756801433859,0.53821735,110420.0,110410.0,0.433129]
[1756801435068,0.1831566,110420.0,110410.0,0.433089]
[1756801435291,0.53821735,110420.0,110410.0,0.433089]
[1756801435716,0.53821735,110420.0,110410.0,0.434089]
[1756801436343,0.35506075,110420.0,110410.0,0.434089]
[1756801438273,0.53618735,110420.0,110410.0,0.434089]
[1756801439541,0.35506075,110420.0,110410.0,0.434089]
[1756801439955,0.3347502,110430.0,110420.0,0.1811266]
[1756801440156,0.69184095,110430.0,110420.0,0.1864766]
[1756801440388,0.53820095,110430.0,110420.0,0.1864766]
[1756801440561,0.69184095,110430.0,110420.0,0.1864766]
[1756801440795,0.53014849,110440.0,110430.0,0.1811102]
[1756801440977,0.68975455,110440.0,110430.0,0.1864602]
[1756801441314,0.35506075,110440.0,110430.0,0.3401402]
[1756801441520,0.3548383,110440.0,110430.0,0.3401402]
[1756801441955,0.5359321,110440.0,110430.0,0.3401402]
[1756801442371,0.6895721,110440.0,110430.0,0.3401402]
[1756801442806,0.6915521,110440.0,110430.0,0.3401402]